{"text_format":"1","workbook":"xlsx","n_sheets":1,"sheets":["Лист2"],"not_rendered":{"charts":0,"images":0,"macros":1,"external_links":0,"defined_names":0,"comments":1,"pivot_tables":0},"unopened":[],"bounds":{"document_bytes":16777216,"sheet_cells":100000,"rows_first":2000,"rows_last":500,"rows_between":2000,"halvings":0,"cell_chars":16384,"cell_head_chars":4096},"cells_cut":0,"cells_raw":0,"read":"whole","date_system":"1900"}

{"sheet":"Лист2","index":0,"n_rows":74,"n_cols":14,"rows_kept":74,"cut":false,"hidden":false,"merged":[]}
[]
["Команда","Участник1"]
[]
["№","Команда 1","Команда 2","Участник1","Участник1","Участник1","Участник2","Участник2","Участник2",null,"Результат"]
[1,"Участник1","Участник2",0,1,2,0,0,0,{"$f":"Sovpad(A5,B$2,B5,D5,F5:G5,I5)","v":"Нет"},{"$f":"IF(A5=\"\",\"\",IF(B$2=B5,IF((D5<>0)*(F5<>0),\"Да\",\"Нет\"),IF((G5<>0)*(I5<>0),\"Да\",\"Нет\")))","v":"Нет"}]
[2,"Участник3","Участник1",1,1,5,4,0,1,"Да",{"$f":"IF(A6=\"\",\"\",IF(B$2=B6,IF((D6<>0)*(F6<>0),\"Да\",\"Нет\"),IF((G6<>0)*(I6<>0),\"Да\",\"Нет\")))","v":"Да"}]
[3,"Участник1","Участник4",1,4,2,2,0,1,{"$f":"Sovpad(A7,B$2,B7,D7,F7:G7,I7)","v":"Да"},"Да"]
[null,null,null,null,null,null,null,null,null,"",""]
[]
[]
[null,null,"                                                                                                                                                                     ЕСЛИ(A5=\"\";\"\";ЕСЛИ(B2=B5;ЕСЛИ((D5<>0)*(F5<>0);\"Да\";\"Нет\");ЕСЛИ((G5<>0)*(I5<>0);\"Да\";\"Нет\"))) "]
[]
[null,null,"                                                              Хотелось бы видеть такую функцию , например ( Sovpad(A,B,C,D,E,F,G)))"]
[null,null,null,"Где А это А5"]
[null,null,null,"B = Имя команды(В2)"]
[null,null,null,"С = Номер ячейки где мы ищем совпадение с именем команды (В5)"]
[null,null,null,"D и Е = Цифры в ячейках если соврадением имени с ячейкой B5 есть"]
[null,null,null,"F и G = Цифры в ячейках если соврадением имени с ячейкой B5 нет"]
[]
[]
["Команда","Участник1"]
[]
["№","Команда 1","Команда 2","Участник1","Участник1","Участник1","Участник2","Участник2","Участник2",null,"Результат"]
[1,"Участник1","Участник2",1,1,2,0,0,0,{"$f":"Sovpad(A24,B$21,B24,D24:I24)","v":"Да"},{"$f":"IF(A24=\"\",\"\",IF(B$21=B24,IF((D24<>0)*(E24<>0)*(F24<>0),\"Да\",\"Нет\"),IF((G24<>0)*(H24<>0)*(I24<>0),\"Да\",\"Нет\")))","v":"Да"}]
[2,"Участник3","Участник1",1,1,5,4,0,1,{"$f":"Sovpad(A25,B$21,B25,D25:I25)","v":"Нет"},{"$f":"IF(A25=\"\",\"\",IF(B$21=B25,IF((D25<>0)*(E25<>0)*(F25<>0),\"Да\",\"Нет\"),IF((G25<>0)*(H25<>0)*(I25<>0),\"Да\",\"Нет\")))","v":"Нет"}]
[3,"Участник1","Участник4",1,4,2,2,0,1,"Да","Да"]
[null,null,null,null,null,null,null,null,null,"",""]
[]
[]
[null,null,"                                                                                                                                                                     ЕСЛИ(A5=\"\";\"\";ЕСЛИ(B2=B5;ЕСЛИ((D5<>0)*(F5<>0);\"Да\";\"Нет\");ЕСЛИ((G5<>0)*(I5<>0);\"Да\";\"Нет\"))) "]
[]
[null,null,"                                                              Хотелось бы видеть такую функцию , например ( Sovpad(A,B,C,D,E,F,G,H,I)))"]
[null,null,null,"Где А это А5"]
[null,null,null,"B = Имя команды(В2)"]
[null,null,null,"С = Номер ячейки где мы ищем совпадение с именем команды (В5)"]
[null,null,null,"D,Е,F = Цифры в ячейках если соврадением имени с ячейкой B5 есть"]
[null,null,null,"G,H,I= Цифры в ячейках если соврадением имени с ячейкой B5 нет"]
[]
["Команда","Участник1"]
[]
["№","Команда 1","Команда 2","Участник1","Участник1","Участник1","Участник2","Участник2","Участник2",null,"Результат"]
[1,"Участник1","Участник2","Да","Да","Да","Нет","Да","Да",{"$f":"Sovpad(A42,B$2,B42,D42,F42:G42,I42)","v":"Да"},{"$f":"IF(A42=\"\",\"\",IF(B$39=B42,IF((D42=\"Да\")*(F42=\"Да\"),\"Да\",\"Нет\"),IF((G42=\"Да\")*(I42=\"Да\"),\"Да\",\"Нет\")))","v":"Да"}]
[2,"Участник3","Участник1","Нет","Да","Да","Нет","Да","Да","Нет",{"$f":"IF(A43=\"\",\"\",IF(B$39=B43,IF((D43=\"Да\")*(F43=\"Да\"),\"Да\",\"Нет\"),IF((G43=\"Да\")*(I43=\"Да\"),\"Да\",\"Нет\")))","v":"Нет"}]
[3,"Участник1","Участник4","Да","Да","Да","Да","Нет","Да",{"$f":"Sovpad(A44,B$2,B44,D44,F44:G44,I44)","v":"Да"},"Да"]
[null,null,null,null,null,null,null,null,null,"",""]
[]
[]
[null,null,"                                                                                                                                                                     ЕСЛИ(A5=\"\";\"\";ЕСЛИ(B2=B5;ЕСЛИ((D5<>0)*(F5<>0);\"Да\";\"Нет\");ЕСЛИ((G5<>0)*(I5<>0);\"Да\";\"Нет\"))) "]
[]
[null,null,"                                                              Хотелось бы видеть такую функцию , например ( Sovpad(A,B,C,D,E,F,G)))"]
[null,null,null,"Где А это А5"]
[null,null,null,"B = Имя команды(В2)"]
[null,null,null,"С = Номер ячейки где мы ищем совпадение с именем команды (В5)"]
[null,null,null,"D и Е = Цифры в ячейках если соврадением имени с ячейкой B5 есть"]
[null,null,null,"F и G = Цифры в ячейках если соврадением имени с ячейкой B5 нет"]
[]
[]
["Команда","Участник1"]
[]
["№","Команда 1","Команда 2","Участник1","Участник1","Участник1","Участник2","Участник2","Участник2",null,"Результат"]
[1,"Участник1","Участник2","Да","Да","Да","Нет","Да","Да",{"$f":"Sovpad(A61,B$21,B61,D61:I61)","v":"Да"},{"$f":"IF(A61=\"\",\"\",IF(B$58=B61,IF((D61=\"Да\")*(E61=\"Да\")*(F61=\"Да\"),\"Да\",\"Нет\"),IF((G61=\"Да\")*(H61=\"Да\")*(I61=\"Да\"),\"Да\",\"Нет\")))","v":"Да"},{"$f":"Sovpad(A61,B$21,B61,D61:F61,G61:I61)","v":"Да"},{"$f":"Sovpad(A61,B$21,B61,D61,E61,F61,G61:H61,I61)","v":"Да"},{"$f":"Sovpad(A61,B$21,B61,D61,E61,F61,G61,H61,I61)","v":"Да"}]
[2,"Участник3","Участник1","Нет","Да","Да","Нет","Да","Да",{"$f":"Sovpad(A62,B$21,B62,D62:I62)","v":"Нет"},{"$f":"IF(A62=\"\",\"\",IF(B$58=B62,IF((D62=\"Да\")*(E62=\"Да\")*(F62=\"Да\"),\"Да\",\"Нет\"),IF((G62=\"Да\")*(H62=\"Да\")*(I62=\"Да\"),\"Да\",\"Нет\")))","v":"Нет"},{"$f":"Sovpad(A62,B$21,B62,D62:F62,G62:I62)","v":"Нет"},{"$f":"Sovpad(A62,B$21,B62,D62,E62,F62,G62:H62,I62)","v":"Нет"},{"$f":"Sovpad(A62,B$21,B62,D62,E62,F62,G62,H62,I62)","v":"Нет"}]
[3,"Участник1","Участник4","Да","Да","Да","Да","Нет","Да","Да","Да","Да","Да","Да"]
[null,null,null,null,null,null,null,null,null,"","","","",""]
[]
[]
[null,null,"                                                                                                                                                                     ЕСЛИ(A5=\"\";\"\";ЕСЛИ(B2=B5;ЕСЛИ((D5<>0)*(F5<>0);\"Да\";\"Нет\");ЕСЛИ((G5<>0)*(I5<>0);\"Да\";\"Нет\"))) "]
[]
[null,null,"                                                              Хотелось бы видеть такую функцию , например ( SovpadText(A,B,C,D,E,F,G,H,I)))"]
[null,null,null,"Где А это А5"]
[null,null,null,"B = Имя команды(В2)"]
[null,null,null,"С = Номер ячейки где мы ищем совпадение с именем команды (В5)"]
[null,null,null,"D,Е,F = Цифры в ячейках если соврадением имени с ячейкой B5 есть"]
[null,null,null,"G,H,I= Цифры в ячейках если соврадением имени с ячейкой B5 нет"]